[Event "61st Mongolian-ch Open 2023"]
[Site "Khovd"]
[Date "2023.05.30"]
[Round "11.6"]
[White "Bilguun, Sumiya"]
[Black "Gan-Erdene, Sugar"]
[Result "0-1"]
[ECO "B23"]
[WhiteElo "2474"]
[BlackElo "2420"]
[Annotator "TA"]
[PlyCount "118"]
[EventDate "2023.05.22"]
[EventType "tourn"]
[EventCountry "MGL"]
[SourceTitle "playchess.com"]
[Source "ChessBase"]
[SourceQuality "1"]
[TimeControl "40/5400+30:1800+30"]

{[%evp 9,118,16,26,-4,0,0,0,0,0,0,0,0,0,-8,12,-6,16,20,22,0,0,0,0,0,0,0,0,-29,-33,-50,-51,-47,-20,-37,-37,-46,-58,-39,-28,-101,-100,-101,-100,-107,-111,-124,-91,-120,-118,-125,-110,-112,-110,-153,-148,-149,-34,-55,0,-257,-238,-350,-350,-348,-350,-323,-339,-250,-250,-731,-697,-756,-559,-747,-597,-795,-729,-1004,-672,-1079,-972,-951,-993,-1263,-954,-1566,-656,-1227,-862,-966,-1112,-1829,-1602,-1737,-1666,-1742,-1641,-1735,-1721,-1067,-1722,-1664,-1383,-1279,-1677,-1534,-1731,-1698,-1718,-2233,-2006]} 1. e4 {[%emt 0:00:04]} c5 {[%emt 0:00:06]} 2. Nc3 {[%emt 0:00:04]} Nc6 {[%emt 0:00:05]} 3. Bb5 {[%emt 0:00:04]} Nd4 {[%emt 0:00:05]} 4. Nf3 {[%emt 0:00:05]} a6 {[%emt 0:00:05]} 5. Bd3 {[%emt 0:00:08]} g6 {[%emt 0:00:22]} 6. b4 {[%emt 0:02:08] B23: Closed Sicilian: Lines without g3.} Nxf3+ {[%emt 0:12:31]} 7. Qxf3 {[%emt 0:00:08]} cxb4 {[%emt 0:00:04]} 8. Nd5 {[%emt 0:00:06][%cal Oc1b2] [#] And now Bb2! would win. The position is equal.} Bg7 {[%emt 0:00:06] Inhibits Bb2.} 9. Rb1 {[%emt 0:00:04]} e6 {[%emt 0:00:24]} 10. Ne3 {[%emt 0:00:03]} (10. Nxb4 $2 a5 11. Nd5 exd5 $19) 10... Ne7 {[%emt 0:02:33][%cal Bg8e7,Be7c6,Bc6d4][%mdl 32]} 11. Rxb4 {[%emt 0:00:08]} O-O {[%emt 0:06:06] [#]} 12. Bb2 $146 {[%emt 0:03:00]} ({Predecessor:} 12. Rb1 d5 13. Ba3 Re8 14. O-O Nc6 15. exd5 Ne5 16. Qe4 exd5 17. Qxd5 Nxd3 18. Qxd3 Qxd3 19. cxd3 {½-½ Sukandar,I (2399)-Espinosa,P (2116) Chesterfield SPICE Cup op 2022 (6)}) 12... e5 {[%emt 0:06:55]} (12... d5 $5 {[%cal Rd5d4]}) 13. O-O {[%emt 0:10:54]} d6 {[%emt 0:00:23]} 14. Bc3 {[%emt 0:23:15]} b5 {[%emt 0:10:50]} 15. a4 {[%emt 0:06:49]} Nc6 {[%emt 0:05:17]} 16. Rb2 {[%emt 0:00:32]} bxa4 {[%emt 0:00:18]} 17. Ra1 {[%emt 0:01:52]} Bd7 {[%emt 0:02:40]} 18. Nc4 {[%emt 0:00:45][%cal Of3e3]} Rb8 {[%emt 0:10:36]} 19. Nxd6 {[%emt 0:10:20]} Nd4 {[%emt 0:00:25]} 20. Qg3 {[%emt 0:04:15]} Bc6 {[%emt 0:13:41]} 21. Rxb8 {[%emt 0:04:53]} Qxb8 {[%emt 0:01:13]} 22. Bxd4 {[%emt 0:00:08]} Qxd6 {[%emt 0:05:16]} 23. Bb2 {[%emt 0:04:21]} Rb8 {[%emt 0:01:03]} 24. Bc3 {[%emt 0:10:51]} (24. Ba3 $1 $11 {keeps the balance.} Qd4 25. c3) 24... Bb5 {[%emt 0:03:23]} 25. h4 {[%emt 0:03:23]} h5 {[%emt 0:00:41]} 26. Qf3 {[%emt 0:00:52]} a3 {[%emt 0:04:55]} 27. Qe3 {[%emt 0:02:51]} Rb7 {[%emt 0:05:34]} 28. g3 {[%emt 0:02:25]} Kh7 {[%emt 0:01:07]} 29. Kg2 {[%emt 0:00:52]} Bh6 {[%emt 0:00:41] Repels f4} 30. Qe2 {[%emt 0:00:51]} Bf8 {[%emt 0:01:41]} 31. Qe3 {[%emt 0:02:01]} Qe6 {[%emt 0:02:27]} 32. f4 {[%emt 0:00:22] [#]} Bxd3 {[%emt 0:01:34]} (32... exf4 $1 $17 33. Qxf4 (33. Qd4 f3+ 34. Kxf3 f6 $17) 33... Rd7) 33. cxd3 $15 {[%emt 0:01:03]} a2 {[%emt 0:01:48]} ({Black should play} 33... exf4 $15 34. Qd4 f3+ 35. Kxf3 f6) 34. fxe5 $2 {[%emt 0:03:04][%mdl 8192] Black continues to play with concentration.} (34. f5 $11 {and White stays safe.} Qb3 35. Qg5 (35. Bxe5 Rd7 $11)) 34... Rb1 $19 {[%emt 0:00:25]} 35. Qd4 {[%emt 0:00:45] Against Bb4} (35. Qf3 $142 Bg7 36. d4) 35... Qg4 {[%emt 0:01:47] ( -> ...Qd1)} 36. e6 {[%emt 0:03:12][%csl Gc3][%cal Rd4h8]} Qe2+ {[%emt 0:00:10]} (36... fxe6 $2 37. Qh8#) 37. Qf2 {[%emt 0:00:04]} Qxf2+ {[%emt 0:00:04]} (37... Qxd3 $2 {gets mated.} 38. Qxf7+ Kh6 39. Qxf8+ Kh7 40. Qh8#) 38. Kxf2 {[%emt 0:00:03]} Rxa1 {[%emt 0:00:09]} ({Don't do} 38... fxe6 39. Rxa2 Rb6 40. d4 $18) 39. Bxa1 {[%emt 0:00:09]} (39. e7 Bxe7 40. Bxa1) 39... fxe6 {[%emt 0:00:06][%mdl 4096] Endgame KB-KB. Black is clearly winning.} 40. d4 {[%emt 0:00:00]} Bb4 {[%emt 0:00:00]} 41. Ke3 {[%emt 0:06:27]} Kg8 {[%emt 0:01:53]} 42. Kd3 {[%emt 0:09:14]} Kf7 {[%emt 0:00:43]} 43. Bb2 {[%emt 0:01:47]} Ke7 {[%emt 0:00:29] ...Bd6 is the strong threat.} 44. Kc2 {[%emt 0:01:44]} Kd7 {[%emt 0:00:32] aiming for ...Bd6.} 45. Kd3 {[%emt 0:02:41]} Bd6 {[%emt 0:00:43]} 46. e5 {[%emt 0:00:05]} Bb4 {[%emt 0:00:05]} 47. Ba1 {[%emt 0:00:31]} Kc6 {[%emt 0:00:10]} 48. Bb2 {[%emt 0:00:08]} Kd5 {[%emt 0:00:06]} 49. Ba1 {[%emt 0:00:05]} a5 {[%emt 0:06:56][%cal Ba6a5,Ba5a4,Ba4a3][%mdl 32]} 50. Bb2 {[%emt 0:00:37]} a4 {[%emt 0:00:38]} 51. Ba1 {[%emt 0:00:05]} a3 {[%emt 0:01:26]} 52. Ke3 {[%emt 0:01:27]} Kc4 {[%emt 0:00:11] Hoping for ...Kb3.} 53. Ke2 {[%emt 0:00:14]} Ba5 {[%emt 0:10:24]} 54. Ke3 {[%emt 0:00:27]} Kb3 {[%emt 0:01:46]} (54... Bb6 $142 55. Ke4 Bd8) 55. Kd3 {[%emt 0:00:06]} Bb4 {[%emt 0:00:09]} 56. d5 {[%emt 0:00:20]} exd5 {[%emt 0:00:05]} 57. e6 {[%emt 0:00:23]} Bc5 {[%emt 0:03:09]} 58. Bc3 {[%emt 0:01:55]} Ka4 {[%emt 0:02:10] White must now prevent ...Kb5.} 59. Bd4 {[%emt 0:08:03]} Kb5 {[%emt 0:00:51] Weighted Error Value: White=0.75/Black=0.27 (precise)} ({Weaker is} 59... Bxd4 60. e7 $11) 0-1